fUST/lending_fUST_20240822
["ID","MTS","AMOUNT","RATE_DAILY","PERIOD"]
[335555319,1724324331095,-2831.04,0.00024109,7]
[335555320,1724324331133,-500.0,0.00024109,7]
[335555321,1724324331170,-500.0,0.00024109,7]
[335555322,1724324331209,-500.0,0.00024109,7]
[335555323,1724324331244,-3072.6,0.00024109,7]
[335555324,1724324331280,-160.0,0.00024139,7]
[335555325,1724324331317,-500.0,0.00024657,7]
[335555326,1724324331355,-676.95,0.00024657,7]
[335555327,1724324331393,-500.0,0.00024657,7]
[335555328,1724324331430,-500.0,0.00024657,7]
[335555329,1724324331479,-500.0,0.00024657,7]
[335555330,1724324331516,-500.0,0.00024657,7]
[335555331,1724324331552,-500.0,0.00024657,7]
[335555332,1724324331588,-897.49,0.00024657,7]
[335555333,1724324331624,-500.0,0.00024657,7]
[335555334,1724324331663,-278.354772,0.00024657,7]
[335555335,1724324331707,-500.0,0.00024657,7]
[335555336,1724324331742,-500.0,0.00024657,7]
[335555337,1724324331778,-500.0,0.00024657,7]
[335555338,1724324331814,-915.75,0.00024657,7]
[335555339,1724324331852,-500.0,0.00024657,7]
[335555340,1724324331890,-536.56,0.00024657,7]
[335555341,1724324331928,-522.49,0.00024657,7]
[335555342,1724324331968,-890.6,0.00024657,7]
[335555343,1724324332005,-291.80158122,0.00024657,7]
[335555344,1724324332043,-500.0,0.00024657,7]
[335555345,1724324332080,-1567.48,0.00024657,7]
[335555346,1724324332118,-795.06,0.00024657,7]
[335555347,1724324332155,-500.0,0.00024657,7]
[335555348,1724324332195,-500.0,0.00024657,7]
[335555349,1724324332232,-500.0,0.00024657,7]
[335555350,1724324332433,-558.34,0.00024657,7]
[335555351,1724324332473,-537.64514515,0.00024657,7]
[335555352,1724324332511,-960.82,0.00024657,7]
[335555353,1724324332548,-606.16,0.00024657,7]
[335555354,1724324332584,-500.0,0.00024657,7]
[335555355,1724324332620,-500.0,0.00024657,7]
[335555356,1724324332658,-500.0,0.00024657,7]
[335555357,1724324332696,-1153.42,0.00024657,7]
[335555358,1724324332732,-500.0,0.00024657,7]
[335555359,1724324332770,-763.72,0.00024657,7]
[335555360,1724324332806,-500.0,0.00024657,7]
[335555361,1724324332844,-500.0,0.00024657,7]
[335555362,1724324332882,-500.0,0.00024657,7]
[335555363,1724324332920,-500.0,0.00024657,7]
[335555364,1724324332957,-500.0,0.00024657,7]
[335555365,1724324332994,-500.0,0.00024657,7]
[335555366,1724324333031,-500.0,0.00024657,7]
[335555367,1724324333069,-500.0,0.00024657,7]
[335555368,1724324333108,-500.0,0.00024657,7]
[335555369,1724324333146,-600.68,0.00024657,7]
[335555370,1724324333185,-534.87,0.00024657,7]
[335555371,1724324333225,-656.62,0.00024657,7]
[335555372,1724324333264,-303.52800397,0.00024657,7]
[335555373,1724324337227,1999.199999,0.00025,60]
[335555374,1724324343268,-1000.0,0.00021,21]
[335555375,1724324343316,-165.27,0.000233,14]
[335555376,1724324343362,-200.0,0.00024658,15]
[335555377,1724324343403,-384119.46876208,0.00025,30]
[335555378,1724324343447,-614515.26123792,0.00025,30]
[335555379,1724324348235,-58219.91002951,0.00025,30]
[335555380,1724324348271,-9845.96471956,0.00025,30]
[335555381,1724324348308,-325796.74936074,0.00025,30]
[335555382,1724324348343,-154625.45342762,0.00025,30]
[335555383,1724324348385,-165.27,0.000254,14]
[335555384,1724324348427,-454.0,0.00026,31]
[335555385,1724324348462,-1876.77,0.00026,14]
[335555386,1724324348497,-1000.0,0.00026,26]
[335555387,1724324348546,-64438.0,0.00027667,120]
[335555388,1724324348581,-165.27,0.000277,14]
[335555389,1724324348618,-1645.8282641,0.00028,30]
[335555390,1724324348654,-1876.77,0.000286,14]
[335555391,1724324348688,-653.74497368,0.00028767,120]
[335555392,1724324348728,-536.49486092,0.0002988,30]
[335555393,1724324348765,-20000.0,0.0003,20]
[335555394,1724324348799,-16752.55607607,0.0003,120]
[335555395,1724324348833,-1000.0,0.0003,10]
[335555396,1724324348867,-20000.0,0.0003,120]
[335555397,1724324348901,-151.0,0.0003,120]
[335555398,1724324348936,-165.27,0.000305,14]
[335555399,1724324348973,-20000.0,0.00031,22]
[335555400,1724324349005,-1000.0,0.00031,15]
[335555401,1724324349037,-20000.0,0.00031,120]
[335555402,1724324349073,-1876.77,0.000313,14]
[335555403,1724324349106,-3827.10537952,0.000315,120]
[335555404,1724324349144,-20000.0,0.00032,24]
[335555405,1724324349178,-700.16,0.00032,10]
[335555406,1724324349211,-3013.3403404,0.00032,30]
[335555407,1724324349245,-20000.0,0.00032,120]
[335555408,1724324349280,-332.0,0.00032,120]
[335555409,1724324349329,-3101.23163904,0.000325,60]
[335555410,1724324349383,-299.79440458,0.000325,120]
[335555411,1724324349433,-3113.0958041,0.00032759,60]
[335555412,1724324349469,-331.44,0.00032877,15]
[335555413,1724324349507,-20000.0,0.00033,26]
[335555414,1724324349541,-1899.941342,0.00033,30]
[335555415,1724324349575,-170.67656124,0.00033,120]
[335555416,1724324349609,-20000.0,0.00033,120]
[335555417,1724324349642,-2615.67361171,0.00033,60]
[335555418,1724324349676,-176.18209407,0.00033,120]
[335555419,1724324349711,-11207.6835,0.00033444,30]
[335555420,1724324349746,-5000.0,0.000335,20]
[335555421,1724324349780,-165.27,0.000335,14]
[335555422,1724324349816,-1876.77,0.000336,14]
[335555423,1724324349854,-1232.61,0.00033972,21]
[335555424,1724324349894,-1232.61,0.00033972,21]
[335555425,1724324349931,-1232.61,0.00033972,21]
[335555426,1724324349967,-1232.61,0.00033972,21]
[335555427,1724324350002,-1232.61,0.00033972,21]
[335555428,1724324350038,-1232.61,0.00033972,21]
[335555429,1724324350073,-1232.61,0.00033972,21]
[335555430,1724324350107,-1232.61,0.00033972,21]
[335555431,1724324350143,-1232.61,0.00033972,21]
[335555432,1724324350178,-1232.61,0.00033972,21]
[335555433,1724324350214,-1232.61,0.00033972,21]
[335555434,1724324350248,-1232.61,0.00033972,21]
[335555435,1724324350284,-1232.61,0.00033972,21]
[335555436,1724324350319,-1232.61,0.00033972,21]
[335555437,1724324350357,-1232.61,0.00033972,21]
[335555438,1724324350394,-1232.61,0.00033972,21]
[335555439,1724324350433,-1232.61,0.00033972,21]
[335555440,1724324350470,-1232.61,0.00033972,21]
[335555441,1724324350506,-1232.61,0.00033972,21]
[335555442,1724324350546,-1232.61,0.00033972,21]
[335555443,1724324350582,-1232.61,0.00033972,21]
[335555444,1724324350618,-1232.61,0.00033972,21]
[335555445,1724324350652,-1232.61,0.00033972,21]
[335555446,1724324350689,-1232.81665501,0.00033972,21]
[335555447,1724324350724,-500.0,0.00033972,21]
[335555448,1724324350761,-500.0,0.00033972,21]
[335555449,1724324350794,-500.0,0.00033972,21]
[335555450,1724324350827,-500.0,0.00033972,21]
[335555451,1724324350861,-500.0,0.00033972,21]
[335555452,1724324350898,-500.0,0.00033972,21]
[335555453,1724324350932,-500.0,0.00033972,21]
[335555454,1724324350967,-500.0,0.00033972,21]
[335555455,1724324351000,-500.0,0.00033972,21]
[335555456,1724324351039,-500.0,0.00033972,21]
[335555457,1724324351073,-500.0,0.00033972,21]
[335555458,1724324351106,-500.0,0.00033972,21]
[335555459,1724324351140,-500.0,0.00033972,21]
[335555460,1724324351176,-500.0,0.00033972,21]
[335555461,1724324351211,-500.0,0.00033972,21]
[335555462,1724324351246,-500.0,0.00033972,21]
[335555463,1724324351282,-500.0,0.00033972,21]
[335555464,1724324351317,-378.16514173,0.00033972,21]
[335555465,1724324351356,-20000.0,0.00034,28]
[335555466,1724324351389,-5347.33826834,0.00034,120]
[335555467,1724324351425,-2402.50784184,0.00034,30]
[335555468,1724324351461,-20000.0,0.00034,120]
[335555469,1724324351496,-5846.58,0.00034,60]
[335555470,1724324351530,-250.0,0.00034,120]
[335555471,1724324351565,-1074.46,0.00034,30]
[335555472,1724324351782,-531.36,0.000343,31]
[335555473,1724324351820,-531.36,0.000343,31]
[335555474,1724324351858,-531.36,0.000343,31]
[335555475,1724324351902,-531.36,0.000343,31]
[335555476,1724324351942,-531.36,0.000343,31]
[335555477,1724324351982,-531.36,0.000343,31]
[335555478,1724324352020,-531.36,0.000343,31]
[335555479,1724324352056,-531.36,0.000343,31]
[335555480,1724324352094,-531.36,0.000343,31]
[335555481,1724324352132,-531.36,0.000343,31]
[335555482,1724324352169,-531.36,0.000343,31]
[335555483,1724324352207,-531.36,0.000343,31]
[335555484,1724324352245,-531.36,0.000344,31]
[335555485,1724324352281,-531.36,0.000344,31]
[335555486,1724324352318,-531.36,0.000344,31]
[335555487,1724324352356,-531.36,0.000344,31]
[335555488,1724324352396,-531.36,0.000344,31]
[335555489,1724324352435,-531.36,0.000344,31]
[335555490,1724324352479,-531.36,0.000344,31]
[335555491,1724324352516,-531.36,0.000344,31]
[335555492,1724324352553,-531.36,0.000344,31]
[335555493,1724324352589,-531.36,0.000344,31]
[335555494,1724324352626,-531.36,0.000344,31]
[335555495,1724324352662,-531.36,0.000344,31]
[335555496,1724324352699,-531.36,0.000344,31]
[335555497,1724324352736,-531.36,0.000344,31]
[335555498,1724324352772,-531.36,0.000344,31]
[335555499,1724324352808,-531.36,0.000344,31]
[335555500,1724324352845,-531.36,0.000344,31]
[335555501,1724324352883,-531.36,0.000344,31]
[335555502,1724324352919,-531.36,0.000344,31]
[335555503,1724324352957,-531.36,0.000344,31]
[335555504,1724324352993,-531.36,0.000344,31]
[335555505,1724324353030,-531.36,0.000344,31]
[335555506,1724324353069,-531.36,0.000344,31]
[335555507,1724324353105,-531.36,0.000344,31]
[335555508,1724324353141,-9980.07040589,0.00034492,45]
[335555509,1724324353176,-5000.0,0.00034492,48]
[335555510,1724324353211,-32432.88529833,0.0003451,21]
[335555511,1724324366390,-46774.62719367,0.0003451,21]
[335555512,1724324366431,-128560.67672065,0.000346,30]
[335555513,1724324366471,-531.36,0.000346,31]
[335555514,1724324366515,-531.36,0.000346,31]
[335555515,1724324366556,-531.36,0.000346,31]
[335555516,1724324366760,-531.36,0.000346,31]
[335555517,1724324366811,-531.36,0.000346,31]
[335555518,1724324366851,-531.36,0.000346,31]
[335555519,1724324366894,-531.36,0.000346,31]
[335555520,1724324366933,-531.36,0.000346,31]
[335555521,1724324366970,-531.36,0.000346,31]
[335555522,1724324367008,-531.36,0.000346,31]
[335555523,1724324367045,-531.36,0.000346,31]
[335555524,1724324367081,-531.36,0.000346,31]
[335555525,1724324367118,-531.36,0.000346,31]
[335555526,1724324367158,-531.36,0.000346,31]
[335555527,1724324367195,-531.36,0.000346,31]
[335555528,1724324367234,-531.36,0.000346,31]
[335555529,1724324367272,-531.36,0.000346,31]
[335555530,1724324367311,-531.36,0.000346,31]
[335555531,1724324367349,-531.36,0.000346,31]
[335555532,1724324367387,-531.36,0.000346,31]
[335555533,1724324367426,-531.36,0.000346,31]
[335555534,1724324367464,-531.36,0.000346,31]
[335555535,1724324367502,-531.36,0.000346,31]
[335555536,1724324367539,-531.36,0.000346,31]
[335555537,1724324367577,-531.36,0.000347,31]
[335555538,1724324367615,-531.36,0.000347,31]
[335555539,1724324367652,-531.36,0.000347,31]
[335555540,1724324367688,-531.36,0.000347,31]
[335555541,1724324367723,-531.36,0.000347,31]
[335555542,1724324367758,-531.36,0.000347,31]
[335555543,1724324367794,-531.36,0.000347,31]
[335555544,1724324367830,-531.36,0.000347,31]
[335555545,1724324367870,-531.36,0.000347,31]
[335555546,1724324367910,-531.36,0.000347,31]
[335555547,1724324367948,-531.36,0.000347,31]
[335555548,1724324367987,-531.36,0.000347,31]
[335555549,1724324368027,-531.36,0.000347,31]
[335555550,1724324368066,-531.36,0.000347,31]
[335555551,1724324368106,-531.36,0.000347,31]
[335555552,1724324368146,-531.36,0.000347,31]
[335555553,1724324368186,-531.36,0.000347,31]
[335555554,1724324368225,-531.36,0.000347,31]
[335555555,1724324368264,-531.36,0.000347,31]
[335555556,1724324368303,-531.36,0.000347,31]
[335555557,1724324368345,-531.36,0.000347,31]
[335555558,1724324368385,-531.36,0.000347,31]
[335555559,1724324368425,-531.36,0.000347,31]
[335555560,1724324368465,-531.36,0.000347,31]
[335555561,1724324368503,-531.36,0.000348,31]
[335555562,1724324368542,-531.36,0.000348,31]
[335555563,1724324368579,-531.36,0.000348,31]
[335555564,1724324368615,-531.36,0.000348,31]
[335555565,1724324368651,-531.36,0.000348,31]
[335555566,1724324368687,-531.36,0.000348,31]
[335555567,1724324368726,-531.36,0.000348,31]
[335555568,1724324368765,-531.36,0.000348,31]
[335555569,1724324368804,-531.36,0.000348,31]
[335555570,1724324368844,-531.36,0.000348,31]
[335555571,1724324368884,-531.36,0.000348,31]
[335555572,1724324368922,-531.36,0.000348,31]
[335555573,1724324368961,-531.36,0.000348,31]
[335555574,1724324368996,-531.36,0.000348,31]
[335555575,1724324369033,-531.36,0.000348,31]
[335555576,1724324369070,-531.36,0.000348,31]
[335555577,1724324369105,-5020.05,0.00034849,21]
[335555578,1724324369148,-5020.05,0.00034849,21]
[335555579,1724324369184,-5020.05,0.00034849,21]
[335555580,1724324369220,-5020.05,0.00034849,21]
[335555581,1724324369255,-5020.05,0.00034849,21]
[335555582,1724324369291,-5020.05,0.00034849,21]
[335555583,1724324369326,-5020.05,0.00034849,21]
[335555584,1724324369365,-5020.05,0.00034849,21]
[335555585,1724324369400,-5020.05,0.00034849,21]
[335555586,1724324369433,-5020.05,0.00034849,21]
[335555587,1724324369467,-5020.05,0.00034849,21]
[335555588,1724324369501,-5020.05,0.00034849,21]
[335555589,1724324369536,-5020.05,0.00034849,21]
[335555590,1724324369569,-5020.05,0.00034849,21]
[335555591,1724324369602,-5020.05,0.00034849,21]
[335555592,1724324369636,-5020.05,0.00034849,21]
[335555593,1724324369670,-5020.05,0.00034849,21]
[335555594,1724324369704,-5020.05,0.00034849,21]
[335555595,1724324369739,-5020.05,0.00034849,21]
[335555596,1724324369773,-5020.05,0.00034849,21]
[335555597,1724324369808,-5020.05,0.00034849,21]
[335555598,1724324369845,-5020.05,0.00034849,21]
[335555599,1724324369882,-5020.05,0.00034849,21]
[335555600,1724324369920,-5020.09,0.00034849,21]
[335555601,1724324369956,-500.0,0.00034849,21]
[335555602,1724324369991,-500.0,0.00034849,21]
[335555603,1724324370025,-500.0,0.00034849,21]
[335555604,1724324370060,-500.0,0.00034849,21]
[335555605,1724324370094,-500.0,0.00034849,21]
[335555606,1724324370129,-500.0,0.00034849,21]
[335555607,1724324370164,-500.0,0.00034849,21]
[335555608,1724324370200,-166.75242278,0.00034849,21]
[335555609,1724324370238,-123542.24,0.000349,14]
[335555610,1724324370274,-20000.0,0.00035,30]
[335555611,1724324370310,-522967.4236629,0.00035,30]
[335555612,1724324393300,-170011.86416261,0.0003451,60]
[335555613,1724324393338,-829988.13583739,0.00035,30]
[335555614,1724324397979,-1000000.0,0.00035,30]
[335555615,1724324403280,1291.56,0.000236,120]
[335555616,1724324403328,188.83,0.0002525,120]
[335555625,1724324859151,-350.0,0.00012163,2]
[335555627,1724324912648,-1500.0,0.0001212,2]
[335555630,1724324946851,-300.0,0.00012119,2]
[335555631,1724324946875,-8170.0,0.0001212,2]
[335555632,1724324958322,21999.79620265,0.00011999,2]
[335555634,1724324978564,-315.0,0.00012163,2]
[335555645,1724325015497,4722.19913161,0.00011999,2]
[335555670,1724325032691,-305.84891193,0.00012629,2]
[335555671,1724325032706,-1461.09407189,0.00012629,2]
[335555672,1724325032716,-250.0,0.00012631,2]
[335555673,1724325032727,-250.0,0.00012666,2]
[335555674,1724325032739,-250.0,0.00012701,2]
[335555675,1724325032752,-250.0,0.00012735,2]
[335555677,1724325032764,-250.0,0.0001277,2]
[335555679,1724325032776,-250.0,0.00012805,2]
[335555681,1724325032787,-250.0,0.00012839,2]
[335555684,1724325032798,-250.0,0.00012874,2]
[335555686,1724325032810,-8846.82343496,0.00012898,2]
[335555688,1724325032820,-250.0,0.00012909,2]
[335555689,1724325032831,-250.0,0.00012943,2]
[335555691,1724325032843,-300.0,0.0001297,2]
[335555693,1724325032856,-300.0,0.0001297,2]
[335555695,1724325032869,-160.49093254,0.00012971,2]
[335555698,1724325032879,-250.0,0.00012978,2]
[335555700,1724325032890,-309.5047931,0.00012985,2]
[335555702,1724325032901,-227.5084395,0.00012985,2]
[335555703,1724325032912,-157.14223377,0.00012991,2]
[335555704,1724325032923,-2099.91788715,0.00012999,2]
[335555705,1724325032933,-250.0,0.00013012,2]
[335555706,1724325032946,-250.0,0.00013047,2]
[335555707,1724325032956,-1926.07418041,0.00013051,2]
[335555708,1724325032967,-961.80087168,0.00013051,2]
[335555709,1724325032980,-538.19912832,0.00013051,2]
[335555710,1724325032991,-250.0,0.00013082,2]
[335555711,1724325033001,-250.0,0.00013116,2]
[335555712,1724325033012,-250.0,0.00013151,2]
[335555713,1724325033023,-250.0,0.00013186,2]
[335555714,1724325033034,-250.0,0.0001322,2]
[335555715,1724325033045,-250.0,0.00013255,2]
[335555716,1724325033057,-250.0,0.00013289,2]
[335555717,1724325033069,-1026.9657843,0.00013293,2]
[335555718,1724325033080,-180.84519984,0.00013333,2]
[335555719,1724325033090,-404.43330921,0.00013333,2]
[335555720,1724325033101,-569.66960368,0.00013333,2]
[335555721,1724325033112,-413.79261446,0.00013477,2]
[335555722,1724325033123,-210.30219425,0.00013477,2]
[335555723,1724325033135,-288.3725178,0.00013477,2]
[335555724,1724325033146,-155.30903657,0.00013477,2]
[335555725,1724325033157,-157.2181013,0.00013477,2]
[335555726,1724325033169,-342.75995159,0.00013477,2]
[335555727,1724325033181,-2633.09600946,0.00013496,2]
[335555728,1724325033192,-196.86784155,0.00013496,2]
[335555729,1724325033202,-200.27895805,0.00013496,2]
[335555730,1724325033212,-196.86784155,0.00013496,2]
[335555731,1724325033222,-154.84989578,0.00013496,2]
[335555732,1724325033236,-320.36544031,0.00013496,2]
[335555733,1724325033246,-309.5047931,0.00013496,2]
[335555734,1724325033257,-320.36544031,0.00013496,2]
[335555735,1724325033267,-933.89722372,0.00013597,2]
[335555736,1724325033278,-260.78604894,0.00013597,2]
[335555751,1724325038759,-1613.91660303,0.00013051,2]
[335555752,1724325038768,-550.6854099,0.00013597,2]
[335555753,1724325038779,-500.0,0.000136,2]
[335555754,1724325038788,-223.12053068,0.00013697,2]
[335555755,1724325038798,-227.7231478,0.00013699,2]
[335555756,1724325038807,-1000.0,0.00014148,2]
[335555757,1724325038816,-300.0,0.00014224,2]
[335555758,1724325038826,-728.79489661,0.00014245,2]
[335555759,1724325038835,-465.23587,0.00014247,2]
[335555760,1724325038845,-420.0,0.00014267,2]
[335555761,1724325038855,-744.4024012,0.00014288,2]
[335555762,1724325038864,-154.80649189,0.00014519,2]
[335555763,1724325038873,-665.66397173,0.00014519,2]
[335555764,1724325038884,-21999.79620265,0.00014544,2]
[335555765,1724325038893,-507.37168076,0.00015,2]
[335555766,1724325038903,-602.04566164,0.00015046,2]
[335555767,1724325038913,-300.0,0.00015694,2]
[335555768,1724325038925,-2633.0960094,0.00017268,2]
[335555769,1724325038936,-188.01634973,0.00017533,2]
[335555770,1724325038950,-2452.9436253,0.00017533,2]
[335555771,1724325038962,-154.79103211,0.00018,2]
[335555772,1724325038971,-55.18834259,0.00018081,2]
[335555773,1724325039108,-99.6181493,0.00018081,2]
[335555774,1724325039117,-409.12482,0.00018356,2]
[335555775,1724325039127,-153.0,0.00018378,2]
[335555776,1724325039137,-500.0,0.00018521,2]
[335555777,1724325039148,-153.0,0.00018575,2]
[335555778,1724325039160,-153.0,0.00018575,2]
[335555779,1724325039172,-153.0,0.00018575,2]
[335555780,1724325039181,-153.0,0.00018575,2]
[335555781,1724325039191,-153.0,0.00018575,2]
[335555782,1724325039201,-306.0,0.00018575,2]
[335555783,1724325039210,-153.0,0.00018575,2]
[335555784,1724325039219,-153.0,0.00018575,2]
[335555785,1724325039229,-308.1237061,0.00018575,2]
[335555786,1724325039239,-2000.0,0.00018858,2]
[335555787,1724325039248,-350.15749391,0.000189,2]
[335555788,1724325039260,-500.0,0.00018957,2]
[335555789,1724325039273,-500.0,0.00018957,2]
[335555790,1724325039282,-500.0,0.00018957,2]
[335555791,1724325039292,-418.72465649,0.00018957,2]
[335555792,1724325039301,-4669.90642797,0.00018958,2]
[335555793,1724325039315,-254778.36725703,0.00018958,2]
[335555794,1724325039324,-57831.46102966,0.00018968,2]
[335555795,1724325039338,-1252.71156511,0.00019,2]
[335555796,1724325039349,-4148.39047445,0.00019,2]
[335555797,1724325039358,-336.96351403,0.00019,2]
[335555798,1724325039369,-447.5026127,0.00019,2]
[335555799,1724325039379,-1239.5494475,0.0001903,2]
[335555800,1724325039390,-500.0,0.00019048,2]
[335555801,1724325039400,-500.0,0.00019048,2]
[335555802,1724325039410,-369.91551788,0.00019048,2]
[335555803,1724325039420,-500.0,0.00019048,2]
[335555804,1724325039430,-402.09054706,0.00019048,2]
[335555805,1724325039440,-500.0,0.00019048,2]
[335555806,1724325039451,-500.0,0.00019048,2]
[335555807,1724325039460,-500.0,0.00019048,2]
[335555808,1724325039471,-500.0,0.00019048,2]
[335555809,1724325039480,-500.0,0.00019048,2]
[335555810,1724325039490,-500.0,0.00019048,2]
[335555811,1724325039500,-500.0,0.00019048,2]
[335555812,1724325039513,-500.0,0.00019048,2]
[335555813,1724325039527,-500.0,0.00019048,2]
[335555814,1724325039537,-500.0,0.00019048,2]
[335555815,1724325039557,-500.0,0.00019048,2]
[335555816,1724325039569,-109698.5282133,0.00019049,2]
[335555829,1724325041060,-33.78427104,0.00019049,2]
[335555830,1724325041075,-657.14970041,0.00019049,2]
[335555831,1724325041093,-501.98208771,0.00019049,2]
[335555843,1724325043886,-157.14223377,0.00012989,2]
[335555844,1724325043896,-238.5246449,0.00019048,2]
[335555845,1724325043907,-2160.32148771,0.00019049,2]
[335555846,1724325044025,-23721.07755669,0.00019049,2]
[335555850,1724325047123,-116.86313389,0.00019049,2]
[335555852,1724325111793,-151.0,0.0003,120]
[335555853,1724325111833,-151.0,0.0003,120]
[335555854,1724325111884,-151.0,0.00031452,120]
[335555855,1724325111925,-3827.6969185,0.000315,120]
[335555856,1724325111972,-151.0,0.00032904,120]
[335555857,1724325112016,-844.1775,0.00033455,30]
[335555858,1724325112058,-151.0,0.00033753,120]
[335555859,1724325112098,-1244.98,0.000339,30]
[335555860,1724325112143,-154.56,0.000343,31]
[335555861,1724325112187,-154.56,0.000343,31]
[335555862,1724325112230,-154.56,0.000343,31]
[335555863,1724325112272,-154.56,0.000343,31]
[335555864,1724325112314,-154.56,0.000343,31]
[335555865,1724325112357,-154.56,0.000343,31]
[335555866,1724325112401,-151.0,0.00034356,120]
[335555867,1724325112444,-154.56,0.000345,31]
[335555868,1724325112489,-154.56,0.000345,31]
[335555869,1724325112531,-154.56,0.000345,31]
[335555870,1724325112584,-154.56,0.000345,31]
[335555871,1724325112626,-154.56,0.000345,31]
[335555872,1724325112669,-154.56,0.000345,31]
[335555873,1724325112709,-154.56,0.000345,31]
[335555874,1724325112750,-154.56,0.000345,31]
[335555875,1724325112789,-154.56,0.000345,31]
[335555876,1724325112829,-154.56,0.000345,31]
[335555877,1724325112872,-154.56,0.000345,31]
[335555878,1724325112914,-154.56,0.000345,31]
[335555879,1724325112955,-154.56,0.000346,31]
[335555880,1724325112998,-154.56,0.000346,31]
[335555881,1724325113039,-154.56,0.000346,31]
[335555882,1724325113081,-154.56,0.000346,31]
[335555883,1724325113124,-154.56,0.000346,31]
[335555884,1724325113168,-154.56,0.000346,31]
[335555885,1724325113210,-154.56,0.000346,31]
[335555886,1724325113251,-154.56,0.000346,31]
[335555887,1724325113293,-154.56,0.000346,31]
[335555888,1724325113345,-154.56,0.000346,31]
[335555889,1724325113389,-154.56,0.000346,31]
[335555890,1724325113432,-154.56,0.000346,31]
[335555891,1724325113476,-154.56,0.000347,31]
[335555892,1724325113519,-154.56,0.000347,31]
[335555893,1724325113566,-154.56,0.000347,31]
[335555894,1724325113609,-154.56,0.000347,31]
[335555895,1724325113655,-154.56,0.000347,31]
[335555896,1724325113698,-154.56,0.000347,31]
[335555897,1724325113741,-154.56,0.000347,31]
[335555898,1724325113783,-154.56,0.000347,31]
[335555899,1724325113825,-154.56,0.000347,31]
[335555900,1724325113868,-154.56,0.000347,31]
[335555901,1724325113911,-154.56,0.000347,31]
[335555902,1724325113953,-154.56,0.000347,31]
[335555903,1724325113997,-154.56,0.000348,31]
[335555904,1724325114039,-154.56,0.000348,31]
[335555905,1724325114082,-154.56,0.000348,31]
[335555906,1724325114125,-154.56,0.000348,31]
[335555907,1724325114174,-154.56,0.000348,31]
[335555908,1724325114216,-154.56,0.000348,31]
[335555909,1724325114260,-154.56,0.000348,31]
[335555910,1724325114302,-154.56,0.000348,31]
[335555911,1724325114345,-154.56,0.000348,31]
[335555912,1724325114388,-154.56,0.000348,31]
[335555913,1724325114432,-154.56,0.000348,31]
[335555914,1724325114475,-154.56,0.000348,31]
[335555915,1724325114514,-984830.9055815,0.00035,30]
[335555916,1724325118649,-1000000.0,0.00035,30]
[335555917,1724325123619,-1000000.0,0.00035,30]
[335555918,1724325128853,-387801.43096435,0.00035,30]
[335555919,1724325128897,-153.61592764,0.00035,30]